[Event "36th Indian-ch U13 Girls 2023"]
[Site "Secunderabad"]
[Date "2023.12.06"]
[Round "4.1"]
[White "Kalyani Sirin"]
[Black "Aadya Gupta"]
[Result "1-0"]
[ECO "C45"]
[WhiteElo "1802"]
[BlackElo "1460"]
[Annotator "NA RC"]
[PlyCount "95"]
[EventDate "2023.12.04"]
[EventType "swiss"]
[EventCountry "IND"]
[SourceTitle "playchess.com"]
[Source "ChessBase"]
[SourceQuality "1"]
[TimeControl "5400+30"]

1. e4 {[%emt 0:00:16]} e5 {[%emt 0:00:02]} 2. Nf3 {[%emt 0:00:13]} Nc6 {[%emt 0:00:03]} 3. d4 {[%emt 0:00:11]} exd4 {[%emt 0:00:06]} 4. Nxd4 {[%emt 0:00:06]} Nf6 {[%emt 0:00:14]} 5. Nxc6 {[%emt 0:00:06]} bxc6 {[%emt 0:00:02]} 6. e5 {[%emt 0:00:10]} Qe7 {[%emt 0:00:04]} 7. Qe2 {[%emt 0:00:06]} Nd5 {[%emt 0:00:04]} 8. h4 {[%emt 0:00:07]} Qe6 {[%emt 0:04:58]} 9. Nd2 {[%emt 0:02:59]} f6 {[%emt 0:08:35]} (9... a5 $11) 10. exf6 {[%emt 0:08:30]} Qxe2+ {[%emt 0:00:31]} 11. Bxe2 {[%emt 0:00:05]} Nxf6 {[%emt 0:00:19]} 12. O-O {[%emt 0:02:36]} d5 {[%emt 0:07:06]} 13. Re1 {[%emt 0:01:02]} Kf7 {[%emt 0:01:59]} 14. Nf3 {[%emt 0:01:18]} Bd6 {[%emt 0:02:03]} 15. Ng5+ {[%emt 0:01:01]} Kf8 {[%emt 0:03:18]} 16. Bd3 {[%emt 0:01:57]} h6 {[%emt 0:02:13]} 17. Nf3 {[%emt 0:05:14]} Kf7 {[%emt 0:08:46]} 18. Ne5+ {[%emt 0:01:44]} Bxe5 {[%emt 0:00:19]} 19. Rxe5 {[%emt 0:00:07]} Bg4 {[%emt 0:12:18]} 20. Bf4 {[%emt 0:04:20]} Rhe8 {[%emt 0:02:22]} 21. Rae1 {[%emt 0:02:27]} Rxe5 {[%emt 0:03:00]} 22. Rxe5 {[%emt 0:00:08]} Re8 {[%emt 0:03:41]} 23. Rxe8 {[%emt 0:02:44]} Nxe8 {[%emt 0:00:11]} 24. Be3 {[%emt 0:00:17]} a5 {[%emt 0:02:39]} 25. a4 {[%emt 0:00:23]} Nd6 {[%emt 0:03:17]} 26. b3 {[%emt 0:01:54]} Ke6 {[%emt 0:06:01]} 27. f3 {[%emt 0:06:59]} Bf5 {[%emt 0:03:09]} 28. Bxf5+ {[%emt 0:01:37]} Kxf5 {[%emt 0:04:26]} 29. Bd2 {[%emt 0:01:35]} Nb7 {[%emt 0:00:19]} 30. b4 {[%emt 0:01:23]} d4 {[%emt 0:04:32]} 31. Kf2 {[%emt 0:01:49]} h5 {[%emt 0:04:01]} 32. Ke2 {[%emt 0:01:06]} Ke5 {[%emt 0:00:50]} 33. g4 {[%emt 0:00:39]} hxg4 {[%emt 0:04:34]} 34. fxg4 {[%emt 0:00:06]} Kd5 {[%emt 0:06:05]} 35. h5 {[%emt 0:00:57]} axb4 {[%emt 0:03:21]} 36. Bxb4 {[%emt 0:00:26]} c5 {[%emt 0:00:38]} 37. a5 {[%emt 0:01:06]} Nd8 {[%emt 0:00:19]} 38. a6 {[%emt 0:00:22]} Kc6 {[%emt 0:01:35]} 39. Bxc5 {[%emt 0:00:56]} Ne6 {[%emt 0:00:09]} 40. Be7 {[%emt 0:03:40]} Kb6 {[%emt 0:00:29]} 41. Kf3 {[%emt 0:00:08]} c5 {[%emt 0:01:37]} 42. g5 {[%emt 0:00:16]} Nxg5+ {[%emt 0:00:41]} 43. Bxg5 {[%emt 0:00:10]} Kxa6 {[%emt 0:00:05]} 44. Bf6 {[%emt 0:00:24]} gxf6 {[%emt 0:00:20]} 45. h6 {[%emt 0:00:05]} c4 {[%emt 0:00:06]} 46. h7 {[%emt 0:00:03]} d3 {[%emt 0:00:04]} 47. cxd3 {[%emt 0:00:06]} c3 {[%emt 0:00:07]} 48. h8=Q {[%emt 0:00:11]} 1-0

[Event "36th Indian-ch U13 Girls 2023"]
[Site "Secunderabad"]
[Date "2023.12.06"]
[Round "4.2"]
[White "Singh Myra"]
[Black "Gorli Nyna"]
[Result "0-1"]
[ECO "B42"]
[WhiteElo "1454"]
[BlackElo "1652"]
[Annotator "NA RC"]
[PlyCount "120"]
[EventDate "2023.12.04"]
[EventType "swiss"]
[EventCountry "IND"]
[SourceTitle "playchess.com"]
[Source "ChessBase"]
[SourceQuality "1"]
[TimeControl "5400+30"]

1. e4 {[%emt 0:00:03]} c5 {[%emt 0:00:05]} 2. Nf3 {[%emt 0:00:03]} e6 {[%emt 0:00:09]} 3. d4 {[%emt 0:00:05]} cxd4 {[%emt 0:00:05]} 4. Nxd4 {[%emt 0:00:05]} a6 {[%emt 0:00:06]} 5. Bd3 {[%emt 0:00:06]} Nc6 {[%emt 0:00:14]} 6. Nxc6 {[%emt 0:00:46]} dxc6 {[%emt 0:02:02]} 7. O-O {[%emt 0:00:11]} Qc7 {[%emt 0:00:49]} 8. Qe2 {[%emt 0:00:44]} e5 {[%emt 0:03:09]} 9. Nc3 {[%emt 0:01:09]} Nf6 {[%emt 0:00:21]} 10. Be3 {[%emt 0:01:03]} Bd6 {[%emt 0:01:38]} 11. Rfe1 {[%emt 0:02:43]} O-O {[%emt 0:00:28]} 12. Rad1 {[%emt 0:03:03]} h6 {[%emt 0:03:06]} 13. h3 {[%emt 0:01:34]} Bb4 {[%emt 0:01:18]} 14. Qf3 {[%emt 0:04:23]} Kh7 {[%emt 0:02:06]} 15. Bd2 {[%emt 0:01:53]} Bxc3 {[%emt 0:07:25]} 16. Bxc3 {[%emt 0:00:12]} Bd7 {[%emt 0:04:41]} 17. Qg3 {[%emt 0:02:14]} Rfe8 {[%emt 0:01:21]} 18. Qe3 {[%emt 0:02:19]} Nh5 {[%emt 0:06:47]} 19. Be2 {[%emt 0:02:35]} Nf4 {[%emt 0:01:42]} 20. Bf3 {[%emt 0:04:31]} Rad8 {[%emt 0:01:52]} 21. Kh2 {[%emt 0:12:11]} f6 {[%emt 0:02:39]} 22. Rd2 {[%emt 0:03:49]} Be6 {[%emt 0:04:10]} 23. Red1 {[%emt 0:10:02]} Rxd2 {[%emt 0:08:50]} 24. Qxd2 {[%emt 0:00:23]} Qc8 {[%emt 0:00:34]} 25. g4 {[%emt 0:07:30]} h5 {[%emt 0:06:03]} 26. Rg1 {[%emt 0:02:15]} hxg4 {[%emt 0:00:47]} 27. Bxg4 {[%emt 0:02:00]} Rd8 {[%emt 0:03:04]} 28. Qe3 {[%emt 0:00:44]} Bxg4 {[%emt 0:04:12]} 29. Rxg4 {[%emt 0:01:35]} g5 {[%emt 0:01:54]} 30. Qf3 {[%emt 0:02:44]} Kg7 {[%emt 0:01:41]} 31. Rg3 {[%emt 0:02:40]} Rh8 {[%emt 0:01:56]} 32. Qe3 {[%emt 0:07:03]} g4 {[%emt 0:05:58]} 33. f3 {[%emt 0:01:22]} Rxh3+ {[%emt 0:00:52]} 34. Rxh3 {[%emt 0:00:13]} gxh3 {[%emt 0:04:14]} 35. Qc5 {[%emt 0:01:47]} Qd7 {[%emt 0:02:47]} 36. Bb4 {[%emt 0:02:42]} Ne6 {[%emt 0:05:16]} 37. Qf2 {[%emt 0:03:36]} Ng5 {[%emt 0:01:02]} 38. Bd2 {[%emt 0:00:53]} Qxd2 {[%emt 0:00:31]} 39. Qxd2 {[%emt 0:00:15]} Nxf3+ {[%emt 0:00:04]} 40. Kxh3 {[%emt 0:00:08]} Nxd2 {[%emt 0:00:26]} 41. Kg4 {[%emt 0:00:22]} Nxe4 {[%emt 0:00:09]} 42. Kf3 {[%emt 0:00:13]} f5 {[%emt 0:00:04]} 43. c3 {[%emt 0:00:14]} Kg6 {[%emt 0:00:04]} 44. Ke3 {[%emt 0:00:15]} Kg5 {[%emt 0:00:04]} 45. Kf3 {[%emt 0:18:22]} Kh4 {[%emt 0:00:06]} 46. a3 {[%emt 0:00:00]} Ng5+ {[%emt 0:00:05]} 47. Ke3 {[%emt 0:00:00]} f4+ {[%emt 0:00:08]} 48. Kf2 {[%emt 0:00:00]} e4 {[%emt 0:00:01]} 49. Ke2 {[%emt 0:00:00]} e3 {[%emt 0:00:05]} 50. b3 {[%emt 0:00:00]} Kg3 {[%emt 0:00:03]} 51. c4 {[%emt 0:00:00]} f3+ {[%emt 0:00:06]} 52. Kxe3 {[%emt 0:00:00]} f2 {[%emt 0:00:02]} 53. b4 {[%emt 0:00:00]} f1=Q {[%emt 0:00:06]} 54. Kd4 {[%emt 0:00:00]} Qf4+ {[%emt 0:00:35]} 55. Kc3 {[%emt 0:00:00]} Qe3+ {[%emt 0:00:03]} 56. Kb2 {[%emt 0:00:00]} Ne4 {[%emt 0:00:05]} 57. c5 {[%emt 0:00:00]} Qc3+ {[%emt 0:00:18]} 58. Ka2 {[%emt 0:00:00]} Qc2+ {[%emt 0:00:01]} 59. Ka1 {[%emt 0:00:00]} Nc3 {[%emt 0:00:03]} 60. b5 {[%emt 0:00:00]} Qa2# {[%emt 0:00:03]} 0-1

[Event "36th Indian-ch U13 Girls 2023"]
[Site "Secunderabad"]
[Date "2023.12.06"]
[Round "4.3"]
[White "Nivedita V C"]
[Black "Sravyasree Bheemarasetty"]
[Result "0-1"]
[ECO "A05"]
[WhiteElo "1638"]
[BlackElo "1455"]
[Annotator "NA RC"]
[PlyCount "80"]
[EventDate "2023.12.04"]
[EventType "swiss"]
[EventCountry "IND"]
[SourceTitle "playchess.com"]
[Source "ChessBase"]
[SourceQuality "1"]
[TimeControl "5400+30"]

1. Nf3 {[%emt 0:00:03]} Nf6 {[%emt 0:00:06]} 2. b3 {[%emt 0:00:05]} d6 {[%emt 0:00:38]} 3. Bb2 {[%emt 0:00:08]} e5 {[%emt 0:00:06]} 4. d3 {[%emt 0:00:20]} Be7 {[%emt 0:00:23]} 5. g3 {[%emt 0:00:08]} Nc6 {[%emt 0:01:26]} 6. Bg2 {[%emt 0:00:06]} O-O {[%emt 0:01:21]} 7. O-O {[%emt 0:00:05]} Ne8 {[%emt 0:03:34]} 8. e4 {[%emt 0:06:00]} f5 {[%emt 0:01:19]} 9. h3 {[%emt 0:05:19]} g6 {[%emt 0:04:27]} 10. Nc3 {[%emt 0:01:40]} Bf6 {[%emt 0:06:40]} 11. Nd5 {[%emt 0:02:17]} Bg7 {[%emt 0:00:25]} 12. exf5 {[%emt 0:17:01]} gxf5 {[%emt 0:00:14]} 13. d4 {[%emt 0:04:50]} e4 {[%emt 0:01:46]} 14. Nh2 {[%emt 0:02:10]} Ne7 {[%emt 0:01:12]} 15. Nf4 {[%emt 0:01:56]} Ng6 {[%emt 0:07:54]} 16. Nh5 {[%emt 0:00:46]} Bh8 {[%emt 0:00:42]} 17. g4 {[%emt 0:11:23]} Ng7 {[%emt 0:05:54]} 18. gxf5 {[%emt 0:03:17]} Nxh5 {[%emt 0:01:18]} 19. fxg6 {[%emt 0:00:43]} hxg6 {[%emt 0:00:02]} 20. Ng4 {[%emt 0:09:57]} Nf4 {[%emt 0:06:50]} 21. Re1 {[%emt 0:12:12]} d5 {[%emt 0:03:31]} 22. Bc1 {[%emt 0:02:55]} Nxg2 {[%emt 0:01:01]} 23. Kxg2 {[%emt 0:00:07]} Qh4 {[%emt 0:00:37]} 24. Be3 {[%emt 0:05:00]} Rf3 {[%emt 0:01:16]} 25. Rh1 {[%emt 0:00:39]} Bxg4 {[%emt 0:00:22]} 26. hxg4 {[%emt 0:00:05]} Qxg4+ {[%emt 0:00:05]} 27. Kf1 {[%emt 0:00:08]} Qf5 {[%emt 0:00:37]} 28. Qd2 {[%emt 0:01:29]} Rf8 {[%emt 0:01:17]} 29. Rh2 {[%emt 0:02:11]} Rh3 {[%emt 0:00:44]} 30. Rxh3 {[%emt 0:03:07]} Qxh3+ {[%emt 0:00:02]} 31. Kg1 {[%emt 0:02:19]} Rf5 {[%emt 0:00:10]} 32. f4 {[%emt 0:00:53]} exf3 {[%emt 0:00:56]} 33. Qh2 {[%emt 0:02:23]} f2+ {[%emt 0:00:06]} 34. Bxf2 {[%emt 0:00:18]} Qxh2+ {[%emt 0:00:09]} 35. Kxh2 {[%emt 0:00:04]} Rxf2+ {[%emt 0:00:03]} 36. Kg3 {[%emt 0:00:07]} Rxc2 {[%emt 0:00:04]} 37. Re1 {[%emt 0:00:06]} Bxd4 {[%emt 0:00:10]} 38. Kf4 {[%emt 0:00:18]} Rxa2 {[%emt 0:00:08]} 39. Kg5 {[%emt 0:00:11]} Rg2+ {[%emt 0:00:08]} 40. Kh6 {[%emt 0:00:06]} Bg7# {[%emt 0:00:06]} 0-1

[Event "36th Indian-ch U13 Girls 2023"]
[Site "Secunderabad"]
[Date "2023.12.06"]
[Round "4.4"]
[White "Samhita Pungavanam"]
[Black "Kirthika B"]
[Result "1/2-1/2"]
[ECO "C47"]
[WhiteElo "1437"]
[BlackElo "1605"]
[Annotator "NA RC"]
[PlyCount "54"]
[EventDate "2023.12.04"]
[EventType "swiss"]
[EventCountry "IND"]
[SourceTitle "playchess.com"]
[Source "ChessBase"]
[SourceQuality "1"]
[TimeControl "5400+30"]

1. e4 {[%emt 0:00:15]} e5 {[%emt 0:00:14]} 2. Nf3 {[%emt 0:00:46]} Nc6 {[%emt 0:00:05]} 3. Nc3 {[%emt 0:01:13]} Nf6 {[%emt 1:31:41]} 4. d4 {[%emt 0:01:08]} exd4 {[%emt 0:00:00]} 5. Nxd4 {[%emt 0:02:26]} Bb4 {[%emt 0:00:00]} 6. Nxc6 {[%emt 0:00:14]} bxc6 {[%emt 0:00:00]} 7. Bd3 {[%emt 0:01:35]} d5 {[%emt 0:00:00]} 8. exd5 {[%emt 0:01:19]} cxd5 {[%emt 0:00:00]} 9. O-O {[%emt 0:00:06]} O-O {[%emt 0:00:00]} 10. h3 {[%emt 0:03:14]} Bxc3 {[%emt 0:00:00]} 11. bxc3 {[%emt 0:02:16]} c5 {[%emt 0:00:00]} 12. Qf3 {[%emt 0:10:37]} h6 {[%emt 0:00:00]} 13. Ba3 {[%emt 0:10:47]} Qa5 {[%emt 0:00:00]} 14. c4 {[%emt 0:11:46]} Be6 {[%emt 0:00:00]} 15. Bb2 {[%emt 0:11:58]} d4 {[%emt 0:00:00]} 16. c3 {[%emt 0:03:32]} Rab8 {[%emt 0:00:00]} 17. Rfb1 {[%emt 0:06:33]} Rfd8 {[%emt 0:00:00]} 18. Qg3 {[%emt 0:04:43]} Kh8 {[%emt 0:00:00]} 19. Qe5 {[%emt 0:06:04]} Nd7 {[%emt 0:00:00]} 20. Qe4 {[%emt 0:00:37]} Nf6 {[%emt 0:00:00]} 21. Qe5 {[%emt 0:00:08]} Nd7 {[%emt 0:00:00]} 22. Qe4 {[%emt 0:02:00]} Nf6 {[%emt 0:00:00]} 23. Qe5 {[%emt 0:00:04]} Nd7 {[%emt 0:00:00]} 24. Qg3 {[%emt 0:19:09]} Nf6 25. Qe5 {[%emt 0:00:00]} Nd7 {[%emt 0:00:00]} 26. Qe4 {[%emt 0:00:00]} Nf6 {[%emt 0:00:00]} 27. Qe5 {[%emt 0:00:00]} Nd7 {[%emt 0:00:00]} 1/2-1/2

[Event "36th Indian-ch U13 Girls 2023"]
[Site "Secunderabad"]
[Date "2023.12.06"]
[Round "4.5"]
[White "Pratyasha Jena"]
[Black "Shivamshika G"]
[Result "1-0"]
[ECO "C01"]
[WhiteElo "1603"]
[BlackElo "1424"]
[Annotator "NA RC"]
[PlyCount "65"]
[EventDate "2023.12.04"]
[EventType "swiss"]
[EventCountry "IND"]
[SourceTitle "playchess.com"]
[Source "ChessBase"]
[SourceQuality "1"]
[TimeControl "5400+30"]

1. e4 {[%emt 0:00:02]} e6 {[%emt 0:00:02]} 2. d4 {[%emt 0:00:11]} d5 {[%emt 0:00:05]} 3. Nc3 {[%emt 0:00:05]} Bb4 {[%emt 0:00:42]} 4. exd5 {[%emt 0:00:22]} exd5 {[%emt 0:00:11]} 5. Bd3 {[%emt 1:32:20]} Nf6 {[%emt 0:02:57]} 6. Qf3 {[%emt 0:00:00]} O-O {[%emt 0:02:32]} 7. Nge2 {[%emt 0:00:00]} Bg4 {[%emt 0:08:49]} 8. Qg3 {[%emt 0:00:00]} Bxe2 {[%emt 0:02:57]} 9. Bxe2 {[%emt 0:00:00]} Ne4 {[%emt 0:01:30]} 10. Qd3 {[%emt 0:00:00]} Re8 {[%emt 0:04:00]} 11. O-O {[%emt 0:00:00]} c5 {[%emt 0:17:57]} 12. dxc5 {[%emt 0:00:00]} Nc6 {[%emt 0:02:16]} 13. Nxe4 {[%emt 0:00:00]} Rxe4 {[%emt 0:02:19]} 14. Be3 {[%emt 0:00:00]} Ne5 {[%emt 0:10:14]} 15. Qb5 {[%emt 0:00:00]} Qc8 {[%emt 0:00:21]} 16. Bd3 {[%emt 0:00:00]} a6 {[%emt 0:02:44]} 17. Qa4 {[%emt 0:00:00]} Rh4 {[%emt 0:04:54]} 18. f3 {[%emt 0:00:00]} Qxc5 {[%emt 0:02:43]} 19. Bf2 {[%emt 0:00:00]} Qe7 {[%emt 0:08:10]} 20. Bxh4 {[%emt 0:00:00]} Qxh4 {[%emt 0:00:04]} 21. Kh1 {[%emt 0:00:00]} b5 {[%emt 0:12:21]} 22. Bxb5 {[%emt 0:00:00]} Ng4 {[%emt 0:01:34]} 23. fxg4 {[%emt 0:00:00]} Bd6 {[%emt 0:00:18]} 24. g3 {[%emt 0:04:23]} Bxg3 {[%emt 0:00:03]} 25. Kg2 {[%emt 0:00:27]} Qxh2+ {[%emt 0:00:08]} 26. Kf3 {[%emt 0:00:05]} Bd6 {[%emt 0:01:03]} 27. Bd3 {[%emt 0:02:19]} Qg3+ {[%emt 0:03:58]} 28. Ke2 {[%emt 0:00:22]} Bc5 {[%emt 0:02:03]} 29. Rae1 {[%emt 0:02:28]} g6 {[%emt 0:03:36]} 30. Kd2 {[%emt 0:01:21]} Kg7 {[%emt 0:01:45]} 31. Qf4 {[%emt 0:00:26]} Qg2+ {[%emt 0:00:45]} 32. Re2 {[%emt 0:00:40]} Be3+ {[%emt 0:00:33]} 33. Kxe3 {[%emt 0:00:20]} 1-0

[Event "36th Indian-ch U13 Girls 2023"]
[Site "Secunderabad"]
[Date "2023.12.06"]
[Round "4.6"]
[White "Shanmathi Sree S"]
[Black "Shreya G Hipparagi"]
[Result "0-1"]
[ECO "B56"]
[WhiteElo "1420"]
[BlackElo "1576"]
[Annotator "NA RC"]
[PlyCount "146"]
[EventDate "2023.12.04"]
[EventType "swiss"]
[EventCountry "IND"]
[SourceTitle "playchess.com"]
[Source "ChessBase"]
[SourceQuality "1"]
[TimeControl "5400+30"]

1. e4 {[%emt 0:01:14]} c5 {[%emt 0:00:08]} 2. Nf3 {[%emt 0:00:07]} d6 {[%emt 0:00:06]} 3. d4 {[%emt 0:00:42]} cxd4 {[%emt 0:00:09]} 4. Nxd4 {[%emt 0:00:12]} Nf6 {[%emt 0:00:08]} 5. Nc3 {[%emt 0:00:07]} Nc6 {[%emt 0:00:26]} 6. Be3 {[%emt 0:03:11]} e5 {[%emt 0:01:13]} 7. Nf3 {[%emt 0:02:55]} Be6 {[%emt 0:07:51]} 8. h3 {[%emt 0:01:20]} Be7 {[%emt 0:03:21]} 9. Be2 {[%emt 0:02:10]} O-O {[%emt 0:06:16]} 10. O-O {[%emt 0:01:14]} d5 {[%emt 0:01:02]} 11. exd5 {[%emt 0:01:32]} Nxd5 {[%emt 0:00:09]} 12. Nxd5 {[%emt 0:01:15]} Qxd5 {[%emt 0:04:23]} 13. c3 {[%emt 0:02:30]} h6 {[%emt 0:05:12]} 14. Qa4 {[%emt 0:10:54]} f6 {[%emt 0:07:27]} 15. Nd2 {[%emt 0:23:44]} Qa5 {[%emt 0:01:41]} 16. Qc2 {[%emt 0:02:57]} f5 {[%emt 0:03:23]} 17. Nc4 {[%emt 0:06:19]} Qc7 {[%emt 0:00:42]} 18. f4 {[%emt 0:02:58]} e4 {[%emt 0:03:16]} 19. Kh1 {[%emt 0:02:01]} Rad8 {[%emt 0:01:52]} 20. Nd2 {[%emt 0:04:46]} Nd4 {[%emt 0:11:59]} 21. Bxd4 {[%emt 0:01:23]} Rxd4 {[%emt 0:00:28]} 22. Nb3 {[%emt 0:00:43]} Rd7 {[%emt 0:01:04]} 23. Rac1 {[%emt 0:01:41]} Bf6 {[%emt 0:00:47]} 24. Bb5 {[%emt 0:03:04]} Re7 {[%emt 0:02:00]} 25. Qf2 {[%emt 0:03:00]} a6 {[%emt 0:02:08]} 26. Be2 {[%emt 0:01:07]} Bc4 {[%emt 0:01:33]} 27. Nd4 {[%emt 0:02:10]} Bxe2 {[%emt 0:01:28]} 28. Nxe2 {[%emt 0:00:16]} Rd8 {[%emt 0:00:34]} 29. Rcd1 {[%emt 0:04:52]} Red7 {[%emt 0:00:58]} 30. Rxd7 {[%emt 0:00:36]} Qxd7 {[%emt 0:01:08]} 31. Ng1 {[%emt 0:04:24]} Qd2 {[%emt 0:01:53]} 32. Qb6 {[%emt 0:00:56]} Qd5 {[%emt 0:00:40]} 33. a3 {[%emt 0:02:35]} Qb5 {[%emt 0:00:57]} 34. Qe6+ {[%emt 0:00:53]} Kh8 {[%emt 0:00:29]} 35. c4 {[%emt 0:01:46]} Qd7 {[%emt 0:00:28]} 36. Qb6 {[%emt 0:00:27]} Bd4 {[%emt 0:01:16]} 37. Qa5 {[%emt 0:01:18]} Bf6 {[%emt 0:02:29]} 38. Qb6 {[%emt 0:00:49]} Qc6 {[%emt 0:00:28]} 39. Qb3 {[%emt 0:01:12]} Rd3 {[%emt 0:00:33]} 40. Qb4 {[%emt 0:00:22]} e3 {[%emt 0:00:39]} 41. Rf3 {[%emt 0:01:57]} Qe4 {[%emt 0:00:49]} 42. Qe1 {[%emt 0:02:44]} Bxb2 {[%emt 0:01:43]} 43. a4 {[%emt 0:00:27]} Bd4 {[%emt 0:01:45]} 44. Ne2 {[%emt 0:00:23]} Bc5 {[%emt 0:01:45]} 45. Ng3 {[%emt 0:00:48]} Qe6 {[%emt 0:00:29]} 46. Kh2 {[%emt 0:00:31]} b6 {[%emt 0:00:45]} 47. Nf1 {[%emt 0:00:42]} Qxc4 {[%emt 0:00:19]} 48. Qe2 {[%emt 0:00:43]} b5 {[%emt 0:01:02]} 49. axb5 {[%emt 0:00:02]} axb5 {[%emt 0:00:05]} 50. Rg3 {[%emt 0:00:34]} Qe4 {[%emt 0:01:55]} 51. Qb2 {[%emt 0:00:39]} Qe7 {[%emt 0:01:53]} 52. Qe2 {[%emt 0:00:31]} Ra3 {[%emt 0:21:16]} 53. Rg6 {[%emt 0:00:33]} b4 {[%emt 0:00:00]} 54. Rc6 {[%emt 0:00:38]} Rc3 {[%emt 0:00:00]} 55. Rc8+ {[%emt 0:00:22]} Kh7 {[%emt 0:00:00]} 56. Ng3 {[%emt 0:00:29]} Qd7 {[%emt 0:00:00]} 57. Ra8 {[%emt 0:00:14]} Bd6 {[%emt 0:00:00]} 58. Qa2 {[%emt 0:00:47]} Bxf4 {[%emt 0:00:00]} 59. Qg8+ {[%emt 0:00:31]} Kg6 {[%emt 0:03:30]} 60. Ra6+ {[%emt 0:00:26]} Rc6 {[%emt 0:00:00]} 61. Ra7 {[%emt 0:00:40]} Qxa7 {[%emt 0:01:00]} 62. Qe8+ {[%emt 0:00:05]} Kh7 {[%emt 0:00:00]} 63. Qxc6 {[%emt 0:00:08]} Qc7 {[%emt 0:00:00]} 64. Qf3 {[%emt 0:01:19]} Bxg3+ {[%emt 0:00:00]} 65. Qxg3 {[%emt 0:00:03]} Qxg3+ {[%emt 0:00:00]} 66. Kxg3 {[%emt 0:00:03]} b3 {[%emt 0:00:00]} 67. Kf3 {[%emt 0:00:03]} b2 {[%emt 0:00:00]} 68. Kxe3 {[%emt 0:00:03]} b1=Q {[%emt 0:00:00]} 69. Kd4 {[%emt 0:00:11]} Qe4+ {[%emt 0:00:00]} 70. Kc5 {[%emt 0:00:03]} Qxg2 {[%emt 0:00:00]} 71. h4 {[%emt 0:00:03]} f4 {[%emt 0:00:00]} 72. h5 {[%emt 0:00:08]} f3 {[%emt 0:00:00]} 73. Kd6 {[%emt 0:00:37]} f2 {[%emt 0:00:00]} 0-1

[Event "36th Indian-ch U13 Girls 2023"]
[Site "Secunderabad"]
[Date "2023.12.06"]
[Round "4.8"]
[White "Vaishnavi Radhakrishnan"]
[Black "Akshaya Sathi"]
[Result "0-1"]
[ECO "B20"]
[WhiteElo "1268"]
[BlackElo "1542"]
[Annotator "NA RC"]
[PlyCount "42"]
[EventDate "2023.12.04"]
[EventType "swiss"]
[EventCountry "IND"]
[SourceTitle "playchess.com"]
[Source "ChessBase"]
[SourceQuality "1"]
[TimeControl "5400+30"]

1. e4 {[%emt 0:00:22]} c5 {[%emt 0:01:02]} 2. Nf3 {[%emt 0:02:09]} d6 {[%emt 0:00:25]} 3. Nc3 {[%emt 0:01:32]} Nf6 {[%emt 0:00:21]} 4. Bc4 {[%emt 0:00:53]} e6 {[%emt 0:00:57]} 5. b3 {[%emt 0:01:18]} Be7 {[%emt 0:03:06]} 6. O-O {[%emt 0:01:01]} O-O {[%emt 0:01:06]} 7. Bb2 {[%emt 0:00:52]} a6 {[%emt 0:02:17]} 8. a4 {[%emt 0:01:57]} Nc6 {[%emt 0:01:36]} 9. Re1 {[%emt 0:14:58]} d5 {[%emt 0:12:01]} 10. exd5 {[%emt 0:00:32]} exd5 {[%emt 0:00:22]} 11. Be2 {[%emt 0:00:34]} Re8 {[%emt 0:06:31]} 12. Na2 {[%emt 0:13:14]} Qb6 {[%emt 0:12:17]} 13. Rb1 {[%emt 0:03:01]} Bg4 {[%emt 0:03:09]} 14. h3 {[%emt 0:04:44]} Bh5 {[%emt 0:03:03]} 15. c3 {[%emt 0:07:42]} Qa7 {[%emt 0:10:50]} 16. d4 {[%emt 0:05:51]} Ne4 {[%emt 0:04:46]} 17. c4 {[%emt 0:06:25]} cxd4 {[%emt 0:05:37]} 18. cxd5 {[%emt 0:01:13]} d3 {[%emt 0:01:41]} 19. dxc6 {[%emt 0:23:10]} Qxf2+ {[%emt 0:00:40]} 20. Kh2 {[%emt 0:06:11]} Bd6+ {[%emt 0:01:48]} 21. Be5 {[%emt 0:01:26]} Bxe5+ {[%emt 0:04:47]} 0-1

[Event "36th Indian-ch U13 Girls 2023"]
[Site "Secunderabad"]
[Date "2023.12.06"]
[Round "4.9"]
[White "Aamuktha Guntaka"]
[Black "Taneesha Drolia"]
[Result "1-0"]
[ECO "C43"]
[WhiteElo "1532"]
[BlackElo "1188"]
[Annotator "NA RC"]
[PlyCount "85"]
[EventDate "2023.12.04"]
[EventType "swiss"]
[EventCountry "IND"]
[SourceTitle "playchess.com"]
[Source "ChessBase"]
[SourceQuality "1"]
[TimeControl "5400+30"]

1. e4 {[%emt 0:00:27]} e5 {[%emt 0:00:08]} 2. Nf3 {[%emt 0:00:13]} Nf6 {[%emt 0:00:21]} 3. d4 {[%emt 0:01:22]} Nxe4 {[%emt 0:00:24]} 4. Bd3 {[%emt 0:00:14]} d5 {[%emt 0:00:23]} 5. Nxe5 {[%emt 0:00:19]} Bd6 {[%emt 0:00:37]} 6. O-O {[%emt 0:01:25]} O-O {[%emt 0:02:28]} 7. c4 {[%emt 0:02:55]} c6 {[%emt 0:01:25]} 8. Qc2 {[%emt 0:04:25]} f5 {[%emt 0:04:19]} 9. Nc3 {[%emt 0:06:09]} Be6 {[%emt 0:03:58]} 10. cxd5 {[%emt 0:14:57]} cxd5 {[%emt 0:00:38]} 11. f3 {[%emt 0:14:26]} Bxe5 {[%emt 0:05:13]} 12. dxe5 {[%emt 0:00:25]} Qb6+ {[%emt 0:01:20]} 13. Kh1 {[%emt 0:00:17]} Nc5 {[%emt 1:15:46]} 14. Be3 {[%emt 0:04:39]} d4 {[%emt 0:00:00]} 15. Bxd4 {[%emt 0:01:13]} Nc6 {[%emt 0:01:00]} 16. Na4 {[%emt 0:14:44]} Nxd4 {[%emt 0:00:00]} 17. Qxc5 {[%emt 0:00:14]} Qxc5 {[%emt 0:00:00]} 18. Nxc5 {[%emt 0:00:06]} Bd5 {[%emt 0:00:00]} 19. b3 {[%emt 0:06:59]} Rac8 {[%emt 0:00:00]} 20. Rac1 {[%emt 0:04:07]} Rfe8 {[%emt 0:00:00]} 21. f4 {[%emt 0:01:59]} b6 {[%emt 0:00:00]} 22. Na4 {[%emt 0:01:24]} Kf7 {[%emt 0:00:00]} 23. Nc3 {[%emt 0:03:20]} Be6 {[%emt 0:00:00]} 24. Ne2 {[%emt 0:03:40]} Nxe2 {[%emt 0:00:00]} 25. Bxe2 {[%emt 0:00:03]} Red8 {[%emt 0:00:00]} 26. Rxc8 {[%emt 0:00:48]} Rxc8 {[%emt 0:00:00]} 27. Bd3 {[%emt 0:01:20]} Rc3 {[%emt 0:00:00]} 28. Rd1 {[%emt 0:02:04]} g6 {[%emt 0:00:00]} 29. Kg1 {[%emt 0:00:44]} h6 {[%emt 0:00:00]} 30. Kf2 {[%emt 0:00:38]} g5 {[%emt 0:00:00]} 31. Ke3 {[%emt 0:01:49]} Kg6 {[%emt 0:00:00]} 32. g4 {[%emt 0:01:02]} b5 {[%emt 0:00:00]} 33. fxg5 {[%emt 0:01:58]} hxg5 {[%emt 0:00:00]} 34. Rf1 {[%emt 0:00:43]} Bd7 {[%emt 0:00:00]} 35. Kd4 {[%emt 0:00:51]} b4 {[%emt 0:00:00]} 36. Bxf5+ {[%emt 0:00:51]} Bxf5 {[%emt 0:00:00]} 37. gxf5+ {[%emt 0:00:03]} Kf7 {[%emt 0:00:00]} 38. f6 {[%emt 0:00:19]} Rc2 {[%emt 0:00:00]} 39. e6+ {[%emt 0:00:10]} Kxe6 {[%emt 0:00:00]} 40. f7 {[%emt 0:00:06]} Rxh2 {[%emt 0:00:00]} 41. f8=Q {[%emt 0:00:13]} Rh4+ {[%emt 0:00:00]} 42. Kc5 {[%emt 0:00:09]} a5 {[%emt 0:00:00]} 43. Qd6# {[%emt 0:00:10]} 1-0